{"text_format":"1","workbook":"xlsx","n_sheets":5,"sheets":["Fibonacci","Guess game","Q3","Q4","Q5"],"not_rendered":{"charts":0,"images":0,"macros":1,"external_links":0,"defined_names":0,"comments":0,"pivot_tables":0},"unopened":[],"bounds":{"document_bytes":16777216,"sheet_cells":100000,"rows_first":2000,"rows_last":500,"rows_between":2000,"halvings":0,"cell_chars":16384,"cell_head_chars":4096},"cells_cut":0,"cells_raw":0,"read":"whole","date_system":"1900"}

{"sheet":"Fibonacci","index":0,"n_rows":20,"n_cols":9,"rows_kept":20,"cut":false,"hidden":false,"merged":[]}
[1,{"$f":"fib(A1)","v":1},null,null,null,null,null,null,1]
[2,{"$f":"fib(A2)","v":1},null,null,null,null,null,null,2]
[3,2,null,null,null,null,null,null,4]
[4,3,null,null,null,null,null,null,7]
[5,5,null,null,null,null,null,null,12]
[6,8,null,null,null,null,null,null,20]
[7,13,null,null,null,null,null,null,33]
[8,21,null,null,null,null,null,null,54]
[9,34,null,null,null,null,null,null,88]
[10,55,null,null,null,null,null,null,143]
[11,89,null,null,null,null,null,null,232]
[12,144,null,null,null,null,null,null,376]
[13,233,null,null,null,null,null,null,609]
[14,377,null,null,null,null,null,null,986]
[15,610,null,null,null,null,null,null,1596]
[16,987,null,null,null,null,null,null,2583]
[17,1597,null,null,null,null,null,null,4180]
[18,2584,null,null,null,null,null,null,6764]
[19,4181,null,null,null,null,null,null,10945]
[20,6765,null,null,null,null,null,null,17710]

{"sheet":"Guess game","index":1,"n_rows":0,"n_cols":0,"rows_kept":0,"cut":false,"hidden":false,"merged":[]}

{"sheet":"Q3","index":2,"n_rows":0,"n_cols":0,"rows_kept":0,"cut":false,"hidden":false,"merged":[]}

{"sheet":"Q4","index":3,"n_rows":0,"n_cols":0,"rows_kept":0,"cut":false,"hidden":false,"merged":[]}

{"sheet":"Q5","index":4,"n_rows":194,"n_cols":1,"rows_kept":194,"cut":false,"hidden":false,"merged":[]}
["Afghanistan"]
["Albania"]
["Algeria"]
["Andorra"]
["Angola"]
["Antigua and Barbuda"]
["Argentina"]
["Armenia"]
["Australia"]
["Azerbaijan"]
["Bahamas"]
["Bahrain"]
["Bangladesh"]
["Barbados"]
["Belarus"]
["Belgium"]
["Belize"]
["Benin"]
["Bhutan"]
["Bolivia"]
["Bosnia and Herzegovina"]
["Botswana"]
["Brazil"]
["Brunei"]
["Bulgaria"]
["Burkina Faso"]
["Burundi"]
["Côte d'Ivoire"]
["Cabo Verde"]
["Cambodia"]
["Cameroon"]
["Canada"]
["Central African Republic"]
["Chad"]
["Chile"]
["China"]
["Colombia"]
["Comoros"]
["Congo (Congo-Brazzaville)"]
["Costa Rica"]
["Croatia"]
["Cuba"]
["Cyprus"]
["Czechia (Czech Republic)"]
["Democratic Republic of the Congo"]
["Denmark"]
["Djibouti"]
["Dominica"]
["Dominican Republic"]
["Ecuador"]
["Egypt"]
["El Salvador"]
["Equatorial Guinea"]
["Eritrea"]
["Estonia"]
["Eswatini (fmr. \"Swaziland\")"]
["Ethiopia"]
["Fiji"]
["Finland"]
["France"]
["Gabon"]
["Gambia"]
["Georgia"]
["Germany"]
["Ghana"]
["Greece"]
["Grenada"]
["Guatemala"]
["Guinea"]
["Guinea-Bissau"]
["Guyana"]
["Haiti"]
["Holy See"]
["Honduras"]
["Hungary"]
["Iceland"]
["India"]
["Indonesia"]
["Iran"]
["Iraq"]
["Ireland"]
["Israel"]
["Italy"]
["Jamaica"]
["Japan"]
["Jordan"]
["Kazakhstan"]
["Kenya"]
["Kiribati"]
["Kuwait"]
["Kyrgyzstan"]
["Laos"]
["Latvia"]
["Lebanon"]
["Lesotho"]
["Liberia"]
["Libya"]
["Liechtenstein"]
["Lithuania"]
["Luxembourg"]
["Madagascar"]
["Malawi"]
["Malaysia"]
["Maldives"]
["Mali"]
["Malta"]
["Marshall Islands"]
["Mauritania"]
["Mauritius"]
["Mexico"]
["Micronesia"]
["Moldova"]
["Monaco"]
["Mongolia"]
["Montenegro"]
["Morocco"]
["Mozambique"]
["Myanmar (formerly Burma)"]
["Namibia"]
["Nauru"]
["Nepal"]
["Netherlands"]
["New Zealand"]
["Nicaragua"]
["Niger"]
["Nigeria"]
["North Korea"]
["North Macedonia"]
["Norway"]
["Oman"]
["Pakistan"]
["Palau"]
["Palestine State"]
["Panama"]
["Papua New Guinea"]
["Paraguay"]
["Peru"]
["Philippines"]
["Poland"]
["Portugal"]
["Qatar"]
["Romania"]
["Russia"]
["Rwanda"]
["Saint Kitts and Nevis"]
["Saint Lucia"]
["Saint Vincent and the Grenadines"]
["Samoa"]
["San Marino"]
["Sao Tome and Principe"]
["Saudi Arabia"]
["Senegal"]
["Serbia"]
["Seychelles"]
["Sierra Leone"]
["Singapore"]
["Slovakia"]
["Slovenia"]
["Solomon Islands"]
["Somalia"]
["South Africa"]
["South Korea"]
["South Sudan"]
["Spain"]
["Sri Lanka"]
["Sudan"]
["Suriname"]
["Sweden"]
["Switzerland"]
["Syria"]
["Tajikistan"]
["Tanzania"]
["Thailand"]
["Timor-Leste"]
["Togo"]
["Tonga"]
["Trinidad and Tobago"]
["Tunisia"]
["Turkey"]
["Turkmenistan"]
["Tuvalu"]
["Uganda"]
["Ukraine"]
["United Arab Emirates"]
["United Kingdom"]
["United States of America"]
["Uruguay"]
["Uzbekistan"]
["Vanuatu"]
["Venezuela"]
["Vietnam"]
["Yemen"]
["Zambia"]
["Zimbabwe"]